fUSD/lending_fUSD_20240404
["ID","MTS","AMOUNT","RATE_DAILY","PERIOD"]
[321463632,1712202646196,-500.0,0.00052054,120]
[321463633,1712202646205,-3362.63,0.00052054,120]
[321463634,1712202646215,-500.0,0.00052054,120]
[321463635,1712202646225,-537.81,0.00052054,120]
[321463636,1712202646234,-1023.11,0.00052054,120]
[321463637,1712202646244,-500.0,0.00052054,120]
[321463638,1712202646256,-4289.49,0.00052054,120]
[321463639,1712202646267,-500.0,0.00052054,120]
[321463640,1712202646276,-500.0,0.00052054,120]
[321463641,1712202646285,-500.0,0.00052054,120]
[321463642,1712202646295,-521.15757729,0.00052054,120]
[321463643,1712202646305,-2275.05,0.00052054,120]
[321463644,1712202646315,-10216.8,0.00052054,120]
[321463645,1712202646325,-500.0,0.00052054,120]
[321463646,1712202646334,-889.55,0.00052054,120]
[321463647,1712202646344,-511.91,0.00052054,120]
[321463648,1712202646353,-500.0,0.00052054,120]
[321463649,1712202646363,-539.07,0.00052054,120]
[321463650,1712202646372,-500.0,0.00052054,120]
[321463651,1712202646381,-734.67,0.00052054,120]
[321463652,1712202646391,-1359.76,0.00052054,120]
[321463653,1712202646401,-500.0,0.00052054,120]
[321463654,1712202646410,-500.0,0.00052054,120]
[321463655,1712202646420,-769.4,0.00052054,120]
[321463656,1712202646430,-1323.92,0.00052054,120]
[321463657,1712202646440,-11595.71,0.00052054,120]
[321463658,1712202646450,-544.32,0.00052054,120]
[321463659,1712202646459,-7174.91,0.00052054,120]
[321463660,1712202646468,-181.50702741,0.00052054,120]
[321463661,1712202646478,-500.0,0.00052054,120]
[321463662,1712202646488,-1089.36,0.00052054,120]
[321463663,1712202646497,-500.0,0.00052054,120]
[321463664,1712202646508,-726.46,0.00052054,120]
[321463665,1712202646518,-500.0,0.00052054,120]
[321463666,1712202646532,-531.06744537,0.00052054,4]
[321463667,1712202646542,-500.0,0.00052054,120]
[321463668,1712202646552,-643.03,0.00052054,120]
[321463669,1712202646561,-1423.73,0.00052054,120]
[321463670,1712202646571,-439.2721973,0.00052054,120]
[321463671,1712202646580,-500.0,0.00052054,120]
[321463672,1712202646589,-505.270346,0.00052054,120]
[321463673,1712202646599,-2416.5,0.00052054,120]
[321463674,1712202646609,-5625.59,0.00052054,120]
[321463675,1712202646619,-2840.6,0.00052054,120]
[321463676,1712202646629,-500.0,0.00052054,120]
[321463677,1712202646638,-500.0,0.00052054,120]
[321463678,1712202646648,-521.36,0.00052054,120]
[321463679,1712202646657,-528.75898161,0.00052054,120]
[321463680,1712202646667,-500.0,0.00052054,120]
[321463681,1712202646676,-795.21,0.00052054,120]
[321463682,1712202646685,-1352.6,0.00052054,120]
[321463683,1712202646695,-448.03199623,0.00052054,120]
[321463684,1712202646706,-5066.22,0.00052054,120]
[321463685,1712202646715,-932.78,0.00052054,120]
[321463686,1712202646725,-846.68,0.00052054,120]
[321463687,1712202646734,-500.0,0.00052054,120]
[321463688,1712202646743,-500.0,0.00052054,120]
[321463689,1712202646752,-500.0,0.00052054,120]
[321463690,1712202646764,-2025.44,0.00052054,120]
[321463691,1712202646774,-2911.43,0.00052054,120]
[321463692,1712202646784,-1261.14,0.00052054,120]
[321463693,1712202646793,-500.0,0.00052054,120]
[321463694,1712202646803,-646.07141953,0.00052054,120]
[321463695,1712202646814,-1596.33,0.00052054,120]
[321463696,1712202646823,-500.0,0.00052054,120]
[321463697,1712202646833,-44641.57,0.00052054,120]
[321463698,1712202646843,-500.0,0.00052054,120]
[321463699,1712202646853,-500.0,0.00052054,120]
[321463700,1712202646862,-1996.91,0.00052054,120]
[321463701,1712202646872,-1627.22,0.00052054,120]
[321463702,1712202646882,-1753.5,0.00052054,120]
[321463703,1712202646892,-500.0,0.00052054,120]
[321463704,1712202646902,-713.56,0.00052054,120]
[321463705,1712202646913,-500.0,0.00052054,120]
[321463706,1712202646922,-500.0,0.00052054,120]
[321463707,1712202646932,-500.0,0.00052054,120]
[321463708,1712202646941,-773.35,0.00052054,120]
[321463709,1712202646951,-4557.01,0.00052054,120]
[321463710,1712202646960,-500.0,0.00052054,120]
[321463711,1712202646970,-2100.33,0.00052054,120]
[321463712,1712202646979,-13351.98,0.00052054,120]
[321463713,1712202646989,-936.94,0.00052054,120]
[321463714,1712202646999,-2702.47,0.00052054,120]
[321463715,1712202647010,-500.0,0.00052054,120]
[321463716,1712202647020,-500.0,0.00052054,120]
[321463717,1712202647029,-2726.3,0.00052054,120]
[321463718,1712202647039,-945.63,0.00052054,120]
[321463719,1712202647186,-526.7,0.00052054,120]
[321463720,1712202647196,-500.0,0.00052054,120]
[321463721,1712202647205,-500.0,0.00052054,120]
[321463722,1712202647214,-483.21229096,0.00052054,120]
[321463723,1712202647224,-2111.66,0.00052054,120]
[321463724,1712202647234,-650.34,0.00052054,120]
[321463725,1712202647242,-500.0,0.00052054,120]
[321463726,1712202647253,-500.0,0.00052054,120]
[321463727,1712202647264,-500.0,0.00052054,120]
[321463728,1712202647274,-7434.29,0.00052054,120]
[321463729,1712202647283,-500.0,0.00052054,120]
[321463730,1712202647292,-500.0,0.00052054,120]
[321463731,1712202647301,-500.0,0.00052054,120]
[321463732,1712202647310,-571.44,0.00052054,120]
[321463733,1712202647320,-545.8,0.00052054,120]
[321463734,1712202647329,-2788.18,0.00052054,120]
[321463735,1712202647339,-500.0,0.00052054,120]
[321463736,1712202647348,-752.25,0.00052054,120]
[321463737,1712202647357,-1993.39,0.00052054,120]
[321463738,1712202647366,-562.78,0.00052054,120]
[321463739,1712202647376,-923.4,0.00052054,120]
[321463740,1712202647385,-1949.08,0.00052054,120]
[321463741,1712202647395,-530.18,0.00052054,120]
[321463742,1712202647404,-500.0,0.00052054,120]
[321463743,1712202647413,-2494.97,0.00052054,120]
[321463744,1712202647423,-2340.4,0.00052054,120]
[321463745,1712202647432,-500.0,0.00052054,120]
[321463746,1712202647442,-500.0,0.00052054,120]
[321463747,1712202647451,-500.0,0.00052054,120]
[321463748,1712202647461,-652.03,0.00052054,120]
[321463749,1712202647470,-1123.18,0.00052054,120]
[321463750,1712202647479,-500.0,0.00052054,120]
[321463751,1712202647489,-2217.25,0.00052054,120]
[321463752,1712202647498,-296.13135956,0.00052054,120]
[321463753,1712202647509,-2604.69,0.00052054,120]
[321463754,1712202647519,-3529.51,0.00052054,120]
[321463755,1712202647532,-2222.09,0.00052054,120]
[321463756,1712202647542,-1347.15,0.00052054,120]
[321463757,1712202647551,-509.42071575,0.00052054,120]
[321463758,1712202647561,-500.0,0.00052054,120]
[321463759,1712202647571,-501.28953151,0.00052054,120]
[321463760,1712202647580,-613.06,0.00052054,120]
[321463761,1712202647590,-1044.49,0.00052054,120]
[321463762,1712202647599,-500.0,0.00052054,120]
[321463763,1712202647610,-2827.53,0.00052054,120]
[321463764,1712202647619,-1342.9,0.00052054,120]
[321463765,1712202647629,-914.39,0.00052054,120]
[321463766,1712202647639,-157.40719442,0.00052054,120]
[321463767,1712202647648,-500.0,0.00052054,120]
[321463768,1712202647658,-1541.66,0.00052054,120]
[321463769,1712202647667,-500.0,0.00052054,120]
[321463770,1712202647677,-770.51,0.00052054,120]
[321463771,1712202647686,-500.0,0.00052054,120]
[321463772,1712202647695,-1237.01,0.00052054,120]
[321463773,1712202647704,-1585.41,0.00052054,120]
[321463774,1712202647714,-500.0,0.00052054,120]
[321463775,1712202647723,-5118.6,0.00052054,120]
[321463776,1712202647732,-500.0,0.00052054,120]
[321463777,1712202647742,-12228.01,0.00052054,120]
[321463778,1712202647751,-4208.29,0.00052054,120]
[321463779,1712202647760,-500.0,0.00052054,120]
[321463780,1712202647770,-1086.63,0.00052054,120]
[321463781,1712202647779,-1063.51,0.00052054,120]
[321463782,1712202647789,-500.0,0.00052054,120]
[321463783,1712202647798,-523.71,0.00052054,120]
[321463784,1712202647808,-503.41333975,0.00052054,120]
[321463785,1712202647818,-500.0,0.00052054,120]
[321463786,1712202647827,-529.61651132,0.00052054,120]
[321463787,1712202647837,-621.6,0.00052054,120]
[321463788,1712202647846,-500.0,0.00052054,120]
[321463789,1712202647855,-3132.11,0.00052054,120]
[321463790,1712202647866,-2047.9,0.00052054,120]
[321463791,1712202647875,-500.0,0.00052054,120]
[321463792,1712202647884,-1006.69,0.00052054,120]
[321463793,1712202647894,-827.19,0.00052054,120]
[321463794,1712202647903,-6305.08,0.00052054,120]
[321463795,1712202647912,-500.0,0.00052054,120]
[321463796,1712202647921,-15209.0,0.00052054,120]
[321463797,1712202647930,-1402.08,0.00052054,120]
[321463798,1712202647940,-500.0,0.00052054,120]
[321463799,1712202647949,-18907.6,0.00052054,120]
[321463800,1712202647958,-1362.79,0.00052054,120]
[321463801,1712202647967,-500.0,0.00052054,120]
[321463802,1712202647977,-500.0,0.00052054,120]
[321463803,1712202647986,-150.0,0.00052054,120]
[321463804,1712202647995,-1383.42,0.00052054,120]
[321463805,1712202648004,-870.28,0.00052054,120]
[321463806,1712202648014,-500.0,0.00052054,120]
[321463807,1712202648023,-500.0,0.00052054,120]
[321463808,1712202648032,-2755.48,0.00052054,120]
[321463809,1712202648041,-2292.71,0.00052054,120]
[321463810,1712202648050,-512.31,0.00052054,120]
[321463811,1712202648060,-500.0,0.00052054,120]
[321463812,1712202648069,-500.0,0.00052054,120]
[321463813,1712202648079,-500.0,0.00052054,120]
[321463814,1712202648088,-29947.14827751,0.00052054,120]
[321463815,1712202648503,-4071.42172249,0.00052054,120]
[321463816,1712202648514,-500.0,0.00052054,120]
[321463817,1712202648524,-500.0,0.00052054,120]
[321463818,1712202648536,-716.85,0.00052054,120]
[321463819,1712202648546,-500.0,0.00052054,120]
[321463820,1712202648555,-3601.62,0.00052054,120]
[321463821,1712202648565,-3145.54,0.00052054,120]
[321463822,1712202648574,-4159.21,0.00052054,120]
[321463823,1712202648584,-3051.86,0.00052054,120]
[321463824,1712202648593,-500.0,0.00052054,120]
[321463825,1712202648602,-500.0,0.00052054,120]
[321463826,1712202648612,-722.98,0.00052054,120]
[321463827,1712202648622,-4988.5,0.00052054,120]
[321463828,1712202648631,-3951.93,0.00052054,120]
[321463829,1712202648641,-6229.51,0.00052054,120]
[321463830,1712202648650,-500.0,0.00052054,120]
[321463831,1712202648659,-500.0,0.00052054,120]
[321463832,1712202648669,-3659.81,0.00052054,120]
[321463833,1712202648678,-500.0,0.00052054,120]
[321463834,1712202648688,-936.43,0.00052054,120]
[321463835,1712202648698,-563.76,0.00052054,120]
[321463836,1712202648708,-6356.95,0.00052054,120]
[321463837,1712202648717,-453.47685924,0.00052054,120]
[321463838,1712202648727,-2289.54,0.00052054,120]
[321463839,1712202648736,-1398.39,0.00052054,120]
[321463840,1712202648745,-740.6,0.00052054,120]
[321463841,1712202648754,-1011.68,0.00052054,120]
[321463842,1712202648764,-500.0,0.00052054,120]
[321463843,1712202648773,-544.15159908,0.00052054,120]
[321463844,1712202648783,-500.0,0.00052054,120]
[321463845,1712202648792,-1448.16,0.00052054,7]
[321463846,1712202648801,-500.0,0.00052054,120]
[321463847,1712202648811,-500.0,0.00052054,120]
[321463848,1712202648820,-13038.89,0.00052054,120]
[321463849,1712202648830,-584.07,0.00052054,120]
[321463850,1712202648839,-1010.86,0.00052054,120]
[321463851,1712202648848,-4906.44,0.00052054,120]
[321463852,1712202648857,-500.0,0.00052054,120]
[321463853,1712202648866,-1130.87,0.00052054,120]
[321463854,1712202648876,-500.0,0.00052054,120]
[321463855,1712202648885,-500.0,0.00052054,30]
[321463856,1712202648894,-2287.36,0.00052054,120]
[321463857,1712202648903,-1748.64,0.00052054,120]
[321463858,1712202648913,-500.0,0.00052054,120]
[321463859,1712202648922,-500.0,0.00052054,120]
[321463860,1712202648931,-1650.52,0.00052054,120]
[321463861,1712202648940,-500.0,0.00052054,120]
[321463862,1712202648951,-500.0,0.00052054,120]
[321463863,1712202648960,-3371.28,0.00052054,120]
[321463864,1712202648970,-1065.2,0.00052054,120]
[321463865,1712202648979,-1987.82,0.00052054,120]
[321463866,1712202648988,-2405.07,0.00052054,120]
[321463867,1712202648997,-607.88,0.00052054,120]
[321463868,1712202649007,-500.0,0.00052054,120]
[321463869,1712202649016,-532.02,0.00052054,120]
[321463870,1712202649026,-500.0,0.00052054,120]
[321463871,1712202649035,-500.0,0.00052054,120]
[321463872,1712202649044,-673.1,0.00052054,120]
[321463873,1712202649055,-1492.26,0.00052054,120]
[321463874,1712202649065,-4795.2,0.00052054,120]
[321463875,1712202649074,-508.50277156,0.00052054,120]
[321463876,1712202649082,-500.0,0.00052054,120]
[321463877,1712202649092,-1955.98,0.00052054,21]
[321463878,1712202649101,-935.06,0.00052054,120]
[321463879,1712202649110,-3865.74,0.00052054,120]
[321463880,1712202649120,-500.0,0.00052054,120]
[321463881,1712202649130,-500.0,0.00052054,120]
[321463882,1712202649141,-725.67,0.00052054,120]
[321463883,1712202649150,-7432.82,0.00052054,120]
[321463884,1712202649162,-5305.37,0.00052054,120]
[321463885,1712202649478,-2157.39,0.00052054,120]
[321463886,1712202649510,-500.0,0.00052054,120]
[321463887,1712202649524,-500.0,0.00052054,120]
[321463888,1712202649534,-16590.27,0.00052054,120]
[321463889,1712202649545,-3525.08,0.00052054,120]
[321463890,1712202649554,-3307.3,0.00052054,120]
[321463891,1712202649565,-1307.57,0.00052054,120]
[321463892,1712202649575,-3307.3,0.00052054,120]
[321463893,1712202649585,-3307.3,0.00052054,120]
[321463894,1712202649595,-3307.3,0.00052054,120]
[321463895,1712202649605,-3307.3,0.00052054,120]
[321463896,1712202649614,-3307.3,0.00052054,120]
[321463897,1712202649624,-500.0,0.00052054,120]
[321463898,1712202649633,-541.24,0.00052054,120]
[321463899,1712202649643,-3307.3,0.00052054,120]
[321463900,1712202649652,-3307.3,0.00052054,120]
[321463901,1712202649662,-500.0,0.00052054,120]
[321463902,1712202649671,-3307.3,0.00052054,120]
[321463903,1712202649681,-3042.35,0.00052054,120]
[321463904,1712202649690,-500.0,0.00052054,120]
[321463905,1712202649699,-535.25698452,0.00052054,120]
[321463906,1712202649708,-500.0,0.00052054,120]
[321463907,1712202649718,-500.0,0.00052054,120]
[321463908,1712202649727,-2446.34,0.00052054,120]
[321463909,1712202649737,-2375.31,0.00052054,120]
[321463910,1712202649746,-500.0,0.00052054,120]
[321463911,1712202649755,-538.99,0.00052054,120]
[321463912,1712202649766,-1769.49,0.00052054,120]
[321463913,1712202649775,-500.0,0.00052054,120]
[321463914,1712202649784,-500.0,0.00052054,120]
[321463915,1712202649794,-1409.31,0.00052054,120]
[321463916,1712202649803,-3250.02,0.00052054,120]
[321463917,1712202649813,-3251.92,0.00052054,120]
[321463918,1712202649822,-999.31,0.00052054,120]
[321463919,1712202649832,-500.0,0.00052054,120]
[321463920,1712202649841,-500.0,0.00052054,120]
[321463921,1712202649851,-1867.1,0.00052054,120]
[321463922,1712202649860,-500.0,0.00052054,120]
[321463923,1712202649868,-788.37,0.00052054,120]
[321463924,1712202649878,-3499.73,0.00052054,120]
[321463925,1712202649887,-627.49121096,0.00052054,120]
[321463926,1712202649898,-514.74052607,0.00052054,120]
[321463927,1712202649908,-500.0,0.00052054,30]
[321463928,1712202649917,-520.54193138,0.00052054,120]
[321463929,1712202649926,-979.02,0.00052054,120]
[321463930,1712202649935,-747.34,0.00052054,2]
[321463931,1712202649945,-521.29165598,0.00052054,120]
[321463932,1712202649954,-2324.67,0.00052054,120]
[321463933,1712202649963,-500.0,0.00052054,120]
[321463934,1712202649972,-500.0,0.00052054,120]
[321463935,1712202649981,-500.0,0.00052054,120]
[321463936,1712202649990,-500.0,0.00052054,120]
[321463937,1712202650000,-361.0630401,0.00052054,120]
[321463938,1712202650010,-622.59,0.00052054,120]
[321463939,1712202650019,-1861.72,0.00052054,120]
[321463940,1712202650029,-500.0,0.00052054,120]
[321463941,1712202650038,-1508.59,0.00052054,120]
[321463942,1712202650048,-500.0,0.00052054,120]
[321463943,1712202650057,-506.93740619,0.00052054,120]
[321463944,1712202650066,-1597.76,0.00052054,120]
[321463945,1712202650075,-1008.29,0.00052054,120]
[321463946,1712202650085,-500.0,0.00052054,120]
[321463947,1712202650094,-2678.18,0.00052054,120]
[321463948,1712202650105,-3220.75,0.00052054,120]
[321463949,1712202650114,-549.78,0.00052054,120]
[321463950,1712202650123,-2308.45,0.00052054,120]
[321463951,1712202650133,-2308.45,0.00052054,120]
[321463952,1712202650143,-509.0148943,0.00052054,120]
[321463953,1712202650152,-2308.45,0.00052054,120]
[321463954,1712202650162,-1538.2,0.00052054,120]
[321463955,1712202650171,-2308.45,0.00052054,120]
[321463956,1712202650181,-2308.45,0.00052054,120]
[321463957,1712202650190,-1940.66,0.00052054,120]
[321463958,1712202650199,-2308.45,0.00052054,120]
[321463959,1712202650209,-2308.45,0.00052054,120]
[321463960,1712202650219,-503.04569225,0.00052054,120]
[321463961,1712202650229,-2308.45,0.00052054,120]
[321463962,1712202650238,-2308.45,0.00052054,120]
[321463963,1712202650247,-687.99,0.00052054,120]
[321463964,1712202650257,-510.08165038,0.00052054,120]
[321463965,1712202650267,-500.0,0.00052054,120]
[321463966,1712202650276,-500.0,0.00052054,120]
[321463967,1712202650285,-500.0,0.00052054,120]
[321463968,1712202650295,-942.02,0.00052054,120]
[321463969,1712202650304,-3237.62,0.00052054,120]
[321463970,1712202650314,-521.58496925,0.00052054,120]
[321463971,1712202650323,-506.49369197,0.00052054,120]
[321463972,1712202650333,-500.0,0.00052054,120]
[321463973,1712202650342,-1535.15,0.00052054,120]
[321463974,1712202650352,-823.46,0.00052054,120]
[321463975,1712202650363,-939.45,0.00052054,120]
[321463976,1712202650372,-340.42099844,0.00052054,120]
[321463977,1712202650382,-2011.14,0.00052054,120]
[321463978,1712202650392,-500.0,0.00052054,120]
[321463979,1712202650401,-1568.14,0.00052054,120]
[321463980,1712202650412,-2037.08,0.00052054,120]
[321463981,1712202650421,-1618.51,0.00052054,120]
[321463982,1712202650431,-537.94930465,0.00052054,120]
[321463983,1712202650440,-1875.18,0.00052054,120]
[321463984,1712202650450,-500.0,0.00052054,120]
[321463985,1712202650459,-500.0,0.00052054,120]
[321463986,1712202650469,-4730.33,0.00052054,120]
[321463987,1712202650478,-500.0,0.00052054,120]
[321463988,1712202650487,-55773.0,0.00052055,30]
[321463989,1712202650496,-162.66,0.00052055,2]
[321463990,1712202650510,-5003.9412926,0.00052092,2]
[321463991,1712202650520,-151.0,0.0005211,120]
[321463992,1712202650533,-198.12529072,0.00052228,2]
[321463993,1712202650543,-3307.3,0.00052327,120]
[321463994,1712202650552,-150.0,0.00052327,14]
[321463995,1712202650561,-2308.45,0.00052327,120]
[321463996,1712202650570,-339432.66288253,0.00052327,36]
[321463997,1712202650610,-2217.68559546,0.00052327,36]
[321463998,1712202650624,-76653.57126666,0.00052327,36]
[321463999,1712202651141,-264.43152008,0.00024698,2]
[321464000,1712202651153,-735.56847992,0.00024698,2]
[321464001,1712202651163,-500.0,0.00052054,120]
[321464002,1712202651172,-500.0,0.00052054,120]
[321464003,1712202651181,-500.0,0.00052054,120]
[321464004,1712202651191,-1905.30571694,0.00052327,36]
[321464005,1712202651203,-285.66835689,0.00052327,36]
[321464006,1712202651218,-252306.0326274,0.00052327,36]
[321464007,1712202651840,-500.0,0.00052054,120]
[321464008,1712202651865,-43.78773535,0.00052327,36]
[321464009,1712202651876,-1615.22770254,0.00052327,36]
[321464010,1712202652700,-525.95,0.00052054,120]
[321464011,1712202652710,-2565.85569259,0.00052327,36]
[321464012,1712202842396,-537.5148274,0.00023675,2]
[321464013,1712202842421,-155.0,0.00023676,2]
[321464014,1712202842443,-2253.81956011,0.00023676,2]
[321464015,1712202842464,-1400.75922573,0.00023678,2]
[321464017,1712203357792,1000.0,0.0004045,30]
[321464018,1712203358251,1000.0,0.0004045,30]
[321464019,1712203358682,1000.0,0.0004045,30]
[321464020,1712203359079,1000.0,0.0004045,30]
[321464021,1712203359423,1000.0,0.0004045,30]
[321464022,1712203359873,1000.0,0.0004045,30]
[321464023,1712203360486,1000.0,0.0004045,30]
[321464024,1712203361387,1000.0,0.0004045,30]
[321464025,1712203361553,1000.0,0.0004045,30]
[321464026,1712203362235,1000.0,0.0004045,30]
[321464027,1712203362834,1000.0,0.0004045,30]
[321464028,1712203363221,1000.0,0.0004045,30]
[321464029,1712203365051,1000.0,0.0004045,30]
[321464030,1712203365453,1000.0,0.0004045,30]
[321464031,1712203365903,1000.0,0.0004045,30]
[321464032,1712203366622,1000.0,0.0004045,30]
[321464033,1712203367055,1000.0,0.0004045,30]
[321464034,1712203367405,1000.0,0.0004045,30]
[321464035,1712203367802,1000.0,0.0004045,30]
[321464036,1712203368215,1000.0,0.0004045,30]
[321464037,1712203368932,1000.0,0.0004045,30]
[321464038,1712203369379,1000.0,0.0004045,30]
[321464039,1712203369806,1000.0,0.0004045,30]
[321464040,1712203370248,1000.0,0.0004045,30]
[321464041,1712203370623,1000.0,0.0004045,30]
[321464042,1712203371218,1000.0,0.0004045,30]
[321464043,1712203371820,1000.0,0.0004045,30]
[321464044,1712203372046,1000.0,0.0004045,30]
[321464045,1712203372492,1000.0,0.0004045,30]
[321464046,1712203372946,934.0,0.0004045,30]
[321464054,1712203831638,-270.97,0.00022243,2]
[321464056,1712203831648,-1000.0,0.00023964,2]
[321464058,1712203831657,-300.0,0.00024027,2]
[321464059,1712203831667,-116.94996561,0.00024028,2]
[321464060,1712203831755,-488.40987031,0.00024028,2]
[321464061,1712203831820,-309.28118103,0.00024028,2]
[321464062,1712203831886,-374.62364352,0.00024028,2]
[321464063,1712203831898,-836.26948837,0.00024028,2]
[321464064,1712203831955,-2365.71554263,0.00024028,2]
[321464065,1712203831967,-6837.00639652,0.00024028,2]
[321464066,1712203831980,-12571.74391201,0.00024028,2]
[321464067,1712203831989,-500.0,0.00024059,2]
[321464068,1712203831998,-270.97,0.00024507,2]
[321464069,1712203832008,-24090.351,0.00024698,2]
[321464070,1712203832017,-3768.927,0.00024698,2]
[321464071,1712203832027,-230.5456,0.000248,2]
[321464072,1712203832037,-206.36060807,0.000248,2]
[321464073,1712203832046,-300.56822192,0.000248,2]
[321464074,1712203832056,-299.09567037,0.000248,2]
[321464075,1712203832065,-206.36060805,0.00024811,2]
[321464076,1712203832075,-300.56822192,0.00024813,2]
[321464079,1712203832085,-206.36060805,0.00024822,2]
[321464082,1712203832094,-300.56822192,0.00024825,2]
[321464083,1712203832103,-206.36060805,0.00024833,2]
[321464086,1712203832113,-300.56822192,0.00024838,2]
[321464088,1712203832123,-499.99,0.00024844,2]
[321464090,1712203832133,-206.36060805,0.00024844,2]
[321464092,1712203832142,-300.56822192,0.0002485,2]
[321464093,1712203832151,-206.36060805,0.00024856,2]
[321464094,1712203832161,-300.56822192,0.00024863,2]
[321464095,1712203832170,-206.36060805,0.00024867,2]
[321464096,1712203832180,-300.56822192,0.00024875,2]
[321464097,1712203832190,-206.36060805,0.00024878,2]
[321464099,1712203832199,-300.56822192,0.00024888,2]
[321464100,1712203832210,-2501.9706463,0.00024889,2]
[321464101,1712203832220,-206.36060805,0.00024889,2]
[321464102,1712203832229,-156.12043485,0.00024898,2]
[321464103,1712203832239,-566.09173538,0.00024899,2]
[321464104,1712203832248,-5061.47879659,0.000249,2]
[321464105,1712203837589,-299.09567031,0.00024814,2]
[321464106,1712203837598,-6859.02893695,0.000249,2]
[321464107,1712203837756,-233079.49226646,0.000249,2]
[321464108,1712203837766,-260401.1108,0.000249,2]
[321464109,1712203837776,-10325.63020105,0.000249,2]
[321464110,1712203837785,-2501.9706463,0.000249,2]
[321464111,1712203837795,-206.36060805,0.000249,2]
[321464112,1712203837804,-300.56822192,0.000249,2]
[321464113,1712203837814,-2472.83823692,0.000249,2]
[321464114,1712203837825,-7500.0,0.000249,2]
[321464115,1712203837836,-615.67,0.00024961,2]
[321464116,1712203837846,-731.37057608,0.00024978,2]
[321464117,1712203837860,-563.62019236,0.00024979,2]
[321464118,1712203837869,-194168.45749825,0.0002498,2]
[321464119,1712203837878,-231.26006153,0.00025,2]
[321464120,1712203837887,-2987940.67891967,0.00025,2]
[321464121,1712203837968,-808.75030777,0.00025,2]
[321464122,1712203837980,-741.27723955,0.00025,2]
[321464123,1712203837991,-420.8888349,0.00025,2]
[321464124,1712203838002,-324.95664198,0.00025,2]
[321464125,1712203838013,-454.09389728,0.00025,2]
[321464126,1712203838064,-86313.40913334,0.00025,2]
[321464127,1712203838077,-12774.26498664,0.00025,2]
[321464129,1712203839626,-290.46375736,0.00024829,2]
[321464130,1712203839637,-8.63191295,0.00024829,2]
[321464131,1712203839646,-702.14579695,0.00025,2]
[321464132,1712203839689,-269892.95897318,0.00025,2]
[321464335,1712203842685,-691.753268,0.00025,2]
[321464336,1712203843016,-115.01359659,0.00025,2]
[321464337,1712203843032,-1070.02173191,0.00025,2]
[321464338,1712203843043,-1005.31244303,0.00025,2]
[321464354,1712203845754,-299.09567031,0.00024843,2]
[321464355,1712203845763,-701.87112969,0.00025,2]
[321464356,1712203845774,-397.75642805,0.00025,2]
[321464357,1712203845812,-1155.79324561,0.00025,2]
[321464427,1712204154301,-357.67128148,0.00024898,10]
[321464430,1712204247577,250.0,0.00023,3]
[321464431,1712204267592,-222.0406809,0.00024898,10]
[321464432,1712204329924,-2845.67117702,0.000249,9]
[321464433,1712204463280,150.5,0.0002499,15]
[321464434,1712204463596,150.5,0.0002499,15]
[321464435,1712204464067,150.5,0.0002498,15]
[321464436,1712204464579,150.5,0.0002497,15]
[321464437,1712204760990,2004.18141195,0.00022316,5]
[321464438,1712204840177,-524.78067754,0.00021056,2]
[321464439,1712204840201,-615.83031697,0.00021057,2]
[321464440,1712204840224,-1000.0,0.00021057,2]